bitfinex-derivatives/quotes_SOLF0:USTF0_20241016
["timestamp","ask_amount","ask_price","bid_price","bid_amount"]
[1729063718111,9.03,153.4,153.34,12.2906]
[1729063718318,12.2897,153.4,153.34,9.03]
[1729063719007,12.2897,153.4,153.36,3.2604]
[1729063719919,3.18347786,153.43,153.36,9.03]
[1729063720121,5.2,153.42,153.37,9.03]
[1729063720420,14.23,153.43,153.37,9.03]
[1729063720713,14.23,153.43,153.39,9.03]
[1729063721511,17.4889,153.43,153.39,12.2897]
[1729063721707,12.2889,153.43,153.39,12.2897]
[1729063722013,8.4588,153.44,153.39,12.2897]
[1729063722212,3.2588,153.44,153.39,12.2897]
[1729063722706,12.27789669,153.45,153.39,9.03]
[1729063722911,3.259,153.43,153.39,9.03]
[1729063723212,9.03,153.42,153.36,9.03]
[1729063723419,9.03,153.42,153.36,12.2902]
[1729063723609,9.03,153.42,153.36,9.03]
[1729063724221,12.2891,153.42,153.38,9.03]
[1729063724412,9.03,153.42,153.38,9.03]
[1729063724713,9.03,153.43,153.38,9.03]
[1729063725517,12.2891,153.43,153.39,3.2598]
[1729063725818,14.23,153.45,153.39,9.03]
[1729063726020,3.2587,153.44,153.4,3.2595]
[1729063726326,17.42129516,153.46,153.4,9.03]
[1729063726705,12.22129516,153.46,153.4,9.03]
[1729063727519,3.2586,153.45,153.41,3.2593]
[1729063729216,3.2586,153.45,153.4,12.2895]
[1729063729417,3.259,153.43,153.39,2.8912]
[1729063729619,3.259,153.43,153.39,11.9212]
[1729063730717,9.03,153.44,153.37,9.03]
[1729063730908,3.2594,153.41,153.37,9.03]
[1729063731321,9.03,153.42,153.37,9.03]
[1729063731508,12.2892,153.42,153.37,9.03]
[1729063732018,12.2892,153.42,153.38,3.26]
[1729063735013,3.2595,153.41,153.37,9.03]
[1729063735220,3.2595,153.41,153.37,12.2901]
[1729063737227,3.2598,153.39,153.36,14.23]
[1729063737521,9.03,153.41,153.36,14.23]
[1729063738124,9.03,153.39,153.33,2.7894]
[1729063738331,9.03,153.39,153.33,11.8194]
[1729063739410,3.2603,153.37,153.34,3.2608]
[1729063740624,3.26,153.39,153.35,3.2605]
[1729063741318,3.26,153.39,153.34,9.03]
[1729063741519,3.26,153.39,153.36,3.2604]
[1729063741920,3.26,153.39,153.35,3.2605]
[1729063742223,3.2601,153.38,153.33,11.8194]
[1729063742723,3.2601,153.38,153.34,3.2608]
[1729063743524,9.03,153.4,153.34,3.2608]
[1729063743725,3.2602,153.37,153.34,3.2608]
[1729063745725,9.03,153.4,153.35,9.03]
[1729063745924,3.26954423,153.45,153.36,9.03]
[1729063746125,9.03,153.42,153.36,9.03]
[1729063746531,3.2595,153.41,153.36,12.2903]
[1729063746737,9.03,153.42,153.36,12.2903]
[1729063747618,3.2597,153.4,153.36,12.2903]
[1729063750230,3.2595,153.41,153.37,3.2602]
[1729063750738,12.2895,153.41,153.37,3.2602]
[1729063755038,3.2596,153.4,153.37,3.2602]
[1729063755841,3.2596,153.4,153.36,9.03]
[1729063756139,3.2596,153.4,153.36,12.2903]
[1729063756449,3.2596,153.4,153.36,3.2603]
[1729063756633,3.2599,153.39,153.35,3.2606]
[1729063757735,3.2601,153.38,153.34,3.2608]
[1729063759835,3.2602,153.37,153.34,3.2608]
[1729063760231,9.03,153.38,153.33,15.0803]
[1729063760438,3.2605,153.36,153.33,15.0803]
[1729063760839,8.32029408,153.43,153.33,15.0803]
[1729063761067,9.03,153.39,153.33,13.7369]
[1729063761953,9.03,153.39,153.33,4.7069]
[1729063762154,3.2604,153.37,153.33,13.7369]
[1729063762355,9.03,153.39,153.33,10.476]
[1729063762838,3.2603,153.37,153.33,13.737]
[1729063763938,3.2603,153.37,153.34,3.2607]
[1729063766239,3.2601,153.38,153.34,3.2607]
[1729063767248,3.2601,153.38,153.34,9.03]
[1729063768445,3.2601,153.38,153.35,3.2606]
[1729063770845,9.03,153.38,153.33,15.496]
[1729063771048,3.2605,153.36,153.33,18.7569]
[1729063774650,5.02,153.41,153.33,15.496]
[1729063774855,3.2599,153.39,153.36,3.2604]
[1729063775152,14.05,153.41,153.34,9.03]
[1729063775347,3.26,153.38,153.35,3.2605]
[1729063775657,3.26,153.38,153.34,9.03]
[1729063776051,3.26,153.38,153.35,3.2605]
[1729063782056,3.2605,153.36,153.33,9.727]
[1729063783061,3.2605,153.36,153.33,4.707]
[1729063783556,3.28029408,153.43,153.35,9.03]
[1729063783749,9.03,153.41,153.35,9.03]
[1729063784155,3.2599,153.39,153.36,3.2604]
[1729063786265,3.2599,153.39,153.35,12.2905]
[1729063788670,3.2599,153.39,153.36,3.2604]
[1729063791466,3.2599,153.39,153.35,3.2606]
[1729063792257,3.26,153.38,153.35,3.2606]
[1729063792457,9.03,153.38,153.33,1.446]
[1729063792958,3.2604,153.37,153.33,4.7069]
[1729063798166,9.03,153.38,153.33,4.7069]
[1729063798167,3.2605,153.36,153.33,4.7069]
[1729063803574,8.2636557,153.42,153.33,1.446]
[1729063803761,15.3953258,153.44,153.37,9.03]
[1729063803969,3.27594078,153.48,153.41,9.03]
[1729063804168,20.4153258,153.49,153.42,3.259]
[1729063804362,18.62561341,153.49,153.42,9.03]
[1729063804670,12.26028761,153.49,153.43,9.03]
[1729063804872,9.03,153.47,153.42,9.03]
[1729063805977,9.03,153.46,153.41,1.3681]
[1729063807468,9.03,153.45,153.4,14.05]
[1729063807778,9.03,153.44,153.39,14.05]
[1729063807973,3.2592,153.42,153.39,14.05]
[1729063810566,5.02,153.46,153.4,9.03]
[1729063810979,9.03,153.47,153.4,10.4363]
[1729063811672,8.2883531,153.49,153.43,9.03]
[1729063811973,9.03,153.46,153.41,9.03]
[1729063812176,3.2587,153.44,153.41,9.03]
[1729063812678,9.03,153.46,153.41,9.03]
[1729063812979,3.2589,153.44,153.41,9.03]
[1729063815478,3.2589,153.44,153.4,4.6658]
[1729063820781,3.2587,153.44,153.41,3.2593]
[1729063820983,3.2587,153.44,153.4,1.4063]
[1729063821679,3.2586,153.45,153.41,12.2893]
[1729063822182,3.2582,153.47,153.42,12.2891]
[1729063822387,3.2683531,153.49,153.44,9.03]
[1729063822589,9.03,153.48,153.43,9.03]
[1729063822886,3.2582,153.47,153.43,12.2889]
[1729063824693,3.2581,153.47,153.44,3.2586]
[1729063826078,9.03,153.48,153.43,12.2889]
[1729063826281,9.03,153.47,153.41,9.03]
[1729063826494,5.02,153.51,153.41,9.03]
[1729063826692,9.03,153.47,153.41,9.03]
[1729063827189,3.2585,153.45,153.41,12.2893]
[1729063827987,3.30812854,153.49,153.44,9.03]
[1729063828589,3.258,153.48,153.44,12.2886]
[1729063829787,3.2584,153.46,153.42,3.259]
[1729063829994,3.2584,153.46,153.42,12.289]
[1729063830197,3.2584,153.46,153.42,9.03]
[1729063831493,3.2584,153.46,153.43,3.2589]
[1729063833997,3.2584,153.46,153.43,12.2889]
[1729063834805,3.2584,153.46,153.43,9.03]
[1729063840008,3.2589,153.43,153.4,4.6657]
[1729063840300,9.03,153.44,153.4,1.4063]
[1729063840499,3.2597,153.4,153.37,1.4188]
[1729063840707,9.03,153.41,153.37,1.4188]
[1729063841407,3.2597,153.4,153.37,1.4188]
[1729063842205,3.2597,153.4,153.34,1.3376]
[1729063842206,3.2599,153.39,153.34,1.3376]
[1729063842500,9.03,153.38,153.34,1.3376]
[1729063842700,9.03,153.35,153.29,10.3742]
[1729063842900,9.03,153.34,153.29,10.3742]
[1729063844107,3.2611,153.33,153.29,10.3742]
[1729063844607,9.03,153.31,153.25,2.6656]
[1729063844796,9.03,153.31,153.25,7.6856]
[1729063845111,3.2619,153.29,153.25,10.9482]
[1729063846107,3.2617,153.3,153.25,10.9482]
[1729063847104,3.2617,153.3,153.26,9.03]
[1729063848012,3.262,153.29,153.25,8.2826]
[1729063849508,9.03,153.31,153.27,3.2623]
[1729063850529,14.05,153.32,153.26,9.03]
[1729063850723,14.05,153.32,153.28,3.262]
[1729063851215,3.21540367,153.35,153.28,9.03]
[1729063851412,9.03,153.33,153.29,3.2619]
[1729063851913,9.03,153.33,153.3,3.2616]
[1729063852417,9.03,153.33,153.28,9.03]
[1729063852615,9.03,153.33,153.29,3.2618]
[1729063852914,9.03,153.33,153.28,9.03]
[1729063853116,9.03,153.33,153.29,1.3488]
[1729063853317,12.2909,153.34,153.29,10.3788]
[1729063854215,9.03,153.34,153.31,3.2615]
[1729063854419,14.05,153.36,153.3,10.4312]
[1729063855113,17.3106,153.36,153.31,3.2614]
[1729063855324,12.2906,153.36,153.3,10.4312]
[1729063855834,12.2906,153.36,153.31,3.2614]
[1729063860332,3.2607,153.35,153.31,3.2614]
[1729063863229,9.03,153.34,153.31,3.2614]
[1729063866233,3.23855484,153.44,153.32,9.03]
[1729063866427,9.03,153.38,153.33,9.03]
[1729063866632,3.26190476,153.4,153.33,9.03]
[1729063866835,9.03,153.39,153.33,9.03]
[1729063867544,8.25320287,153.43,153.36,9.03]
[1729063867834,8.2785,153.45,153.4,3.2594]
[1729063868032,14.05,153.45,153.39,9.03]
[1729063868424,9.03,153.45,153.39,9.03]
[1729063868624,12.2887,153.45,153.4,3.2595]
[1729063869327,5.02,153.47,153.41,9.03]
[1729063869522,5.02,153.49,153.42,9.03]
[1729063869726,9.03,153.47,153.43,3.2588]
[1729063870537,12.2881,153.47,153.43,3.2588]
[1729063870836,14.05,153.49,153.43,12.2888]
[1729063871329,3.258,153.48,153.43,12.2888]
[1729063872041,3.2581,153.47,153.43,12.2888]
[1729063873931,9.03,153.5,153.45,9.03]
[1729063874135,9.03,153.52,153.46,9.03]
[1729063874635,3.2573,153.51,153.46,9.03]
[1729063874839,3.2573,153.51,153.47,3.2579]
[1729063875037,3.2573,153.51,153.46,9.03]
[1729063875333,12.2872,153.52,153.47,3.2579]
[1729063875539,9.03,153.52,153.46,9.03]
[1729063875937,3.2574,153.51,153.46,3.2582]
[1729063880141,3.2579,153.48,153.45,2.6881]
[1729063881452,14.07,153.51,153.41,14.07]
[1729063881746,14.07,153.49,153.42,5.02]
[1729063882244,3.2584,153.46,153.42,5.02]
[1729063882648,3.2584,153.46,153.4,14.07]
[1729063882848,3.2584,153.46,153.41,5.02]
[1729063883444,3.2584,153.46,153.42,3.2591]
[1729063885137,3.2582,153.47,153.43,3.2589]
[1729063885343,14.07,153.49,153.43,3.2589]
[1729063885847,3.2583,153.46,153.42,3.2591]
[1729063886546,3.2582,153.47,153.43,3.2589]
[1729063887146,3.2579,153.48,153.44,3.2586]
[1729063887450,5.02,153.52,153.42,14.07]
[1729063887750,3.2574,153.51,153.47,3.2579]
[1729063889747,14.07,153.53,153.45,6.4321]
[1729063890055,14.07,153.49,153.4,14.07]
[1729063890248,3.2586,153.45,153.41,3.2593]
[1729063896073,3.2588,153.44,153.41,3.2593]
[1729063897981,3.2591,153.43,153.4,3.2596]
[1729063898180,9.01,153.44,153.39,11.7778]
[1729063898396,9.01,153.43,153.39,2.7678]
[1729063898577,3.2596,153.4,153.39,2.7678]
[1729063898883,3.2596,153.4,153.33,1.4509]
[1729063898884,9.01,153.4,153.36,9.01]
[1729063899277,9.01,153.39,153.33,10.4609]
[1729063899472,9.01,153.37,153.32,11.7382]
[1729063899680,3.2606,153.36,153.32,14.9993]
[1729063899970,14.1,153.39,153.32,5.9893]
[1729063900473,3.2602,153.37,153.32,5.9893]
[1729063900771,3.2602,153.37,153.33,3.261]
[1729063900958,3.2604,153.36,153.32,2.7282]
[1729063901864,3.2604,153.36,153.32,5.9893]
[1729063903266,14.1,153.39,153.32,2.7282]
[1729063903464,3.2603,153.37,153.33,3.2609]
[1729063904462,3.2604,153.36,153.33,3.2609]
[1729063905960,14.1,153.39,153.33,3.2609]
[1729063906157,3.2603,153.37,153.33,3.2609]
[1729063909172,14.1,153.39,153.32,2.7282]
[1729063909367,14.1,153.37,153.32,2.7282]
[1729063909593,14.1,153.35,153.27,5.02]
[1729063909869,14.1,153.35,153.27,7.8005]
[1729063910062,3.2612,153.33,153.28,3.262]
[1729063910256,14.1,153.35,153.28,3.262]
[1729063910866,3.2611,153.33,153.28,3.262]
[1729063911266,14.1,153.35,153.28,3.262]
[1729063911962,3.2612,153.33,153.27,7.8005]
[1729063912167,3.2612,153.33,153.29,3.2618]
[1729063912566,3.261,153.34,153.3,3.2616]
[1729063912868,5.02,153.38,153.29,14.1]
[1729063914164,3.2606,153.36,153.32,3.2611]
[1729063917688,14.1,153.39,153.31,5.02]
[1729063917970,22.46062494,153.41,153.31,19.12]
[1729063918160,22.46062494,153.41,153.32,1.4444]
[1729063918161,14.1,153.41,153.32,1.4444]
[1729063918569,14.1,153.41,153.35,3.2606]
[1729063918765,14.1,153.39,153.33,2.6884]
[1729063919171,5.02,153.38,153.33,2.6884]
[1729063919475,3.2608,153.34,153.33,2.6884]
[1729063919677,3.2608,153.34,153.31,8.2813]
[1729063920174,3.2608,153.34,153.31,5.02]
[1729063920477,9.02,153.36,153.31,5.02]
[1729063920670,3.2607,153.35,153.32,9.02]
[1729063921679,9.02,153.37,153.32,9.02]
[1729063921881,9.02,153.39,153.33,9.02]
[1729063922180,9.02,153.39,153.34,1.3594]
[1729063922967,12.2799,153.39,153.35,3.2605]
[1729063923581,9.02,153.39,153.35,3.2605]
[1729063923780,3.26,153.38,153.34,4.6202]
[1729063925077,9.02,153.39,153.34,1.3594]
[1729063925282,5.02,153.41,153.34,10.3794]
[1729063925479,14.04,153.41,153.35,9.02]
[1729063925679,17.2996,153.41,153.37,3.2602]
[1729063925874,14.04,153.41,153.35,9.02]
[1729063926579,3.2596,153.4,153.36,3.2603]
[1729063926785,14.04,153.41,153.35,14.04]
[1729063926987,3.2593,153.42,153.38,3.26]
[1729063927580,9.02,153.43,153.37,9.02]
[1729063927780,3.2594,153.41,153.37,12.2801]
[1729063928077,12.2794,153.41,153.37,12.2801]
[1729063929390,12.2794,153.41,153.37,3.2601]
[1729063931385,9.02,153.41,153.35,14.04]
[1729063931587,3.2596,153.4,153.35,14.04]
[1729063932379,3.2596,153.4,153.36,3.2603]
[1729063932885,12.2796,153.4,153.36,3.2603]
[1729063933187,9.02,153.4,153.35,5.02]
[1729063933383,9.02,153.4,153.35,14.04]
[1729063933590,9.02,153.42,153.35,14.04]
[1729063934375,122.03629273,153.47,153.38,9.02]
[1729063934580,9.02,153.45,153.4,9.02]
[1729063934987,3.259,153.43,153.4,9.02]
[1729063935789,9.02,153.45,153.4,9.02]
[1729063935981,9.02,153.46,153.4,9.02]
[1729063936385,9.02,153.46,153.42,3.259]
[1729063936589,9.02,153.46,153.41,9.02]
[1729063936987,12.2785,153.46,153.42,3.259]
[1729063937693,3.2579,153.48,153.44,3.2587]
[1729063938194,12.2779,153.48,153.44,3.2587]
[1729063938787,3.2581,153.47,153.43,8.2789]
[1729063940392,12.2779,153.48,153.44,3.2587]
[1729063942995,3.2579,153.48,153.44,3.2587]
[1729063943192,12.2779,153.48,153.44,3.2587]
[1729063950200,9.02,153.47,153.43,5.02]
[1729063950800,3.2584,153.46,153.43,8.2789]
[1729063950995,3.18397453,153.58,153.45,9.02]
[1729063951304,12.2772,153.52,153.48,3.2577]
[1729063952204,3.2573,153.51,153.47,17.278]
[1729063953092,9.02,153.52,153.47,14.02]
[1729063953290,9.02,153.52,153.48,3.2579]
[1729063953291,12.2771,153.52,153.48,3.2579]
[1729063958822,3.2571,153.52,153.48,3.2578]
[1729063959522,3.2571,153.52,153.49,12.2777]
[1729063960117,3.2571,153.52,153.49,3.2577]
[1729063960824,9.02,153.53,153.49,3.2577]
[1729063960825,12.2769,153.53,153.49,3.2577]
[1729063961227,9.02,153.55,153.49,9.02]
[1729063961427,3.2566,153.54,153.5,3.2574]
[1729063961729,9.02,153.55,153.5,3.2574]
[1729063962425,3.2566,153.54,153.51,3.2572]
[1729063967024,3.2566,153.54,153.5,3.2574]
[1729063969119,9.02,153.52,153.47,5.0]
[1729063969923,3.2574,153.51,153.48,3.2578]
[1729063970126,3.2574,153.51,153.47,14.02]
[1729063971429,3.2574,153.51,153.47,17.2779]
[1729063971831,9.02,153.53,153.47,14.02]
[1729063972029,8.24710022,153.57,153.47,5.0]
[1729063972030,9.02,153.52,153.47,5.0]
[1729063972626,3.2576,153.5,153.47,8.2581]
[1729063977128,9.02,153.52,153.46,9.02]
[1729063977328,3.258,153.48,153.46,5.0]
[1729063977527,3.258,153.48,153.45,17.2784]
[1729063981540,9.02,153.5,153.45,14.02]
[1729063981738,3.2582,153.47,153.45,14.02]
[1729063982136,3.2587,153.45,153.44,5.0]
[1729063983139,3.2584,153.46,153.44,5.0]
[1729063985643,3.2585,153.45,153.44,5.0]
[1729063987655,3.2584,153.46,153.44,5.0]
[1729063988847,9.02,153.51,153.46,3.2583]
[1729063990549,3.2577,153.49,153.46,3.2583]
[1729063990750,14.02,153.53,153.47,12.2779]
[1729063991749,125.19479359,153.57,153.49,9.02]
[1729063992060,9.02,153.56,153.5,12.2773]
[1729063992658,3.22971362,153.59,153.52,9.02]
[1729063992852,9.02,153.57,153.52,9.02]
[1729063994564,70.4,153.62,153.54,9.02]
[1729063994857,9.02,153.59,153.54,9.02]
[1729063995252,3.2556,153.59,153.55,12.2763]
[1729063999859,3.256,153.57,153.53,3.2568]
[1729064000161,9.02,153.58,153.53,5.0]
[1729064000562,3.2564,153.55,153.53,5.0]
[1729064000772,9.02,153.56,153.51,1.3217]
[1729064001057,3.2569,153.53,153.5,2.7971]
[1729064003456,9.02,153.55,153.5,2.7971]
[1729064003655,9.02,153.53,153.49,5.0]
[1729064004059,3.2572,153.52,153.49,5.0]
[1729064005459,9.02,153.52,153.47,1.3791]
[1729064005657,9.02,153.51,153.47,6.3791]
[1729064005874,9.02,153.49,153.46,1.3526]
[1729064006162,9.02,153.49,153.43,14.02]
[1729064006863,9.02,153.49,153.45,3.2583]
[1729064008458,3.2579,153.48,153.44,3.2587]
[1729064011759,8.30086015,153.54,153.44,3.2587]
[1729064011760,9.02,153.47,153.44,3.2587]
[1729064011961,9.02,153.46,153.43,5.0]
[1729064012357,3.2591,153.43,153.39,9.296]
[1729064013474,3.2591,153.43,153.4,3.2596]
[1729064014969,3.2591,153.43,153.39,9.296]
[1729064015170,3.2591,153.43,153.39,12.5556]
[1729064015364,12.2791,153.43,153.39,12.5556]
[1729064015674,12.2791,153.43,153.4,3.2595]
[1729064016670,9.02,153.43,153.4,3.2595]
[1729064017072,3.2588,153.44,153.4,3.2595]
[1729064018767,15.37504612,153.53,153.41,9.02]
[1729064019072,9.02,153.47,153.41,9.02]
[1729064020561,9.02,153.48,153.43,9.02]
[1729064020974,12.278,153.48,153.43,12.2788]
[1729064021968,3.2584,153.46,153.42,8.259]
[1729064022277,9.02,153.47,153.42,5.0]
[1729064022973,12.2782,153.47,153.43,3.2589]
[1729064027783,3.2584,153.46,153.42,8.2591]
[1729064028981,3.2582,153.47,153.42,5.0]
[1729064029180,3.2582,153.47,153.43,9.02]
[1729064029375,3.30086015,153.54,153.43,9.02]
[1729064029568,9.02,153.5,153.47,3.2579]
[1729064029774,9.7609,153.69,153.47,9.02]
[1729064029775,9.02,153.52,153.47,9.02]
[1729064029971,9.02,153.53,153.47,9.02]
[1729064030478,12.2769,153.53,153.49,3.2575]
[1729064030783,9.02,153.53,153.48,9.02]
[1729064031278,9.02,153.53,153.5,3.2574]
[1729064036078,9.02,153.55,153.48,9.02]
[1729064036383,121.94958007,153.56,153.5,9.02]
[1729064036384,135.96958007,153.56,153.5,9.02]
[1729064036986,3.2564,153.55,153.51,3.2571]
[1729064037178,135.96958007,153.56,153.5,9.02]
[1729064037790,9.02,153.54,153.47,4.179]
[1729064038088,9.02,153.54,153.48,9.02]
[1729064038788,12.2767,153.54,153.5,3.2573]
[1729064044697,12.2767,153.54,153.51,3.2572]
[1729064044897,3.2565,153.55,153.52,9.02]
[1729064045098,9.02,153.58,153.52,9.02]
[1729064045303,9.02,153.58,153.52,12.2769]
[1729064046386,3.2563,153.56,153.52,12.2769]
[1729064046892,12.2763,153.56,153.52,12.2769]
[1729064047390,3.2564,153.55,153.52,9.02]
[1729064048607,9.02,153.56,153.52,9.02]
[1729064048788,73.60248322,153.62,153.52,9.02]
[1729064048989,9.02,153.62,153.56,9.02]
[1729064049298,130.92350276,153.63,153.56,9.02]
[1729064050296,3.2553,153.61,153.57,3.2558]
[1729064050706,3.255,153.62,153.58,3.2557]
[1729064052199,3.2552,153.61,153.57,12.2759]
[1729064055598,9.02,153.63,153.57,12.2759]
[1729064055599,12.2748,153.63,153.57,9.02]
[1729064055799,12.19799133,153.65,153.59,9.02]
[1729064056105,9.02,153.65,153.59,9.02]
[1729064056503,3.2547,153.64,153.6,3.2552]
[1729064058706,3.2542,153.66,153.62,9.02]
[1729064059308,3.2543,153.65,153.62,9.02]
[1729064061601,70.38,153.71,153.63,9.02]
[1729064061799,3.2541,153.66,153.63,9.02]
[1729064062103,1.0,153.7,153.63,9.02]
[1729064062405,9.02,153.69,153.63,9.02]
[1729064063107,3.2536,153.68,153.64,3.2545]
[1729064063310,3.2536,153.68,153.64,12.2745]
[1729064065511,1.0,153.7,153.64,9.02]
[1729064065711,3.2535,153.69,153.65,3.2541]
[1729064066415,10.02,153.7,153.64,9.02]
[1729064066416,13.2734,153.7,153.66,3.254]
[1729064066613,9.02,153.69,153.63,4.0938]
[1729064066806,9.02,153.68,153.63,4.0938]
[1729064067710,9.02,153.68,153.63,13.1138]
[1729064068409,1.0,153.7,153.63,18.1138]
[1729064068608,9.02,153.69,153.63,18.1138]
[1729064068910,3.2537,153.68,153.64,3.2543]
[1729064069813,3.2537,153.68,153.65,9.02]
[1729064071114,1.0,153.7,153.65,9.02]
[1729064071321,3.2535,153.69,153.65,12.2741]
[1729064072117,3.2535,153.69,153.66,9.02]
[1729064072319,1.0,153.7,153.66,12.274]
[1729064073424,4.2534,153.7,153.66,12.274]
[1729064075027,4.2534,153.7,153.68,9.02]
[1729064079726,4.2534,153.7,153.66,12.274]
[1729064079928,1.0,153.7,153.66,9.02]
[1729064080119,3.2534,153.69,153.66,9.02]
[1729064081727,4.2534,153.7,153.66,12.274]
[1729064083432,4.2534,153.7,153.68,9.02]
[1729064085733,1.0,153.7,153.68,9.02]
[1729064090440,1.0,153.7,153.67,5.0]
[1729064090647,4.2533,153.7,153.68,9.02]
[1729064091050,1.0,153.7,153.69,9.02]
[1729064094244,1.0,153.7,153.67,5.0]
[1729064094449,1.0,153.7,153.68,9.02]
[1729064095336,4.2533,153.7,153.68,9.02]
[1729064101449,3.2534,153.69,153.67,5.0]
[1729064101643,1.0,153.7,153.63,4.0938]
[1729064101839,1.0,153.7,153.66,9.02]
[1729064102053,3.2538,153.68,153.66,9.02]
[1729064102247,1.0,153.7,153.66,9.02]
[1729064102738,3.2535,153.69,153.67,9.02]
[1729064102953,1.0,153.7,153.67,9.02]
[1729064103153,1.0,153.7,153.69,9.02]
[1729064104552,4.2532,153.7,153.69,9.02]
[1729064105454,4.2532,153.7,153.67,9.02]
[1729064106152,1.0,153.7,153.67,9.02]
[1729064106351,3.2534,153.69,153.67,9.02]
[1729064106546,3.2534,153.69,153.66,9.02]
[1729064107045,1.0,153.7,153.64,4.98]
[1729064107351,1.0,153.7,153.65,9.02]
[1729064107653,10.02,153.7,153.64,14.0]
[1729064108057,1.0,153.7,153.65,9.02]
[1729064108853,3.254,153.67,153.65,9.02]
[1729064109161,3.254,153.67,153.58,191.7815795]
[1729064109162,9.02,153.67,153.58,191.7815795]
[1729064109351,3.2551,153.61,153.6,9.02]
[1729064109550,3.2551,153.61,153.59,7.6904]
[1729064109952,3.2547,153.64,153.6,9.02]
[1729064111353,3.2547,153.64,153.62,9.02]
[1729064112449,14.0,153.68,153.59,7.6904]
[1729064112753,3.2542,153.66,153.63,9.02]
[1729064113258,3.2543,153.65,153.63,9.02]
[1729064113757,3.2543,153.65,153.62,9.02]
[1729064121266,3.2538,153.68,153.64,12.2745]
[1729064121459,3.2538,153.68,153.63,5.0]
[1729064121460,3.2538,153.68,153.66,9.02]
[1729064125975,1.0,153.7,153.66,9.02]
[1729064126162,4.2533,153.7,153.67,9.02]
[1729064126971,4.2533,153.7,153.68,9.02]
[1729064129275,9.02,153.69,153.64,9.02]
[1729064130374,3.254,153.67,153.64,9.02]
[1729064135966,3.2538,153.68,153.63,4.98]
[1729064136276,9.02,153.69,153.63,14.0]
[1729064137070,3.2542,153.66,153.63,14.0]
[1729064139680,3.2543,153.65,153.63,14.0]
[1729064142573,3.2542,153.66,153.63,14.0]
[1729064143074,15.0,153.7,153.63,14.0]
[1729064144378,3.2542,153.66,153.63,14.0]
[1729064147379,3.2548,153.63,153.6,4.98]
[1729064149681,3.2548,153.63,153.6,14.0]
[1729064150084,3.2548,153.63,153.6,9.02]
[1729064151597,3.2546,153.64,153.6,9.02]
[1729064152791,3.2546,153.64,153.6,12.2753]
[1729064157995,3.255,153.62,153.59,7.6944]
[1729064159121,1.0,153.7,153.61,9.02]
[1729064159281,1.0,153.7,153.64,9.02]
[1729064159586,10.02,153.7,153.64,9.02]